fUSD/lending_fUSD_20240429
["ID","MTS","AMOUNT","RATE_DAILY","PERIOD"]
[324863899,1714380648949,-500.0,0.00012647,2]
[324863900,1714380648958,-500.0,0.00012647,2]
[324863901,1714380648970,-500.0,0.00012647,2]
[324863902,1714380648980,-507.30883866,0.00012647,2]
[324863903,1714380648990,-500.0,0.00012647,2]
[324863904,1714380648999,-500.0,0.00012647,2]
[324863905,1714380649008,-500.0,0.00012647,2]
[324863906,1714380649016,-500.0,0.00012647,2]
[324863907,1714380649026,-500.0,0.00012647,2]
[324863908,1714380649035,-260.2,0.00012647,2]
[324863909,1714380649044,-500.0,0.00012647,2]
[324863910,1714380649055,-500.0,0.00012647,2]
[324863911,1714380649064,-500.0,0.00012647,2]
[324863912,1714380649075,-500.0,0.00012647,2]
[324863913,1714380649084,-500.0,0.00012647,2]
[324863914,1714380649094,-500.0,0.00012647,2]
[324863915,1714380649104,-500.0,0.00012647,2]
[324863916,1714380649113,-500.0,0.00012647,2]
[324863917,1714380649122,-500.0,0.00012647,2]
[324863918,1714380649131,-500.0,0.00012647,2]
[324863919,1714380649140,-500.0,0.00012647,2]
[324863920,1714380649150,-500.0,0.00012647,2]
[324863921,1714380649159,-500.0,0.00012647,2]
[324863922,1714380649168,-500.0,0.00012647,2]
[324863923,1714380649177,-463.56962781,0.00012647,2]
[324863924,1714380649186,-500.0,0.00012647,2]
[324863925,1714380649196,-500.0,0.00012647,2]
[324863926,1714380649244,-500.0,0.00012647,2]
[324863927,1714380649252,-500.0,0.00012647,2]
[324863928,1714380649262,-500.0,0.00012647,2]
[324863929,1714380649271,-500.0,0.00012647,2]
[324863930,1714380649281,-500.0,0.00012647,2]
[324863931,1714380649290,-500.0,0.00012647,2]
[324863932,1714380649299,-500.0,0.00012647,2]
[324863933,1714380649308,-500.0,0.00012647,2]
[324863934,1714380649319,-500.0,0.00012647,2]
[324863935,1714380649328,-500.0,0.00012647,2]
[324863936,1714380649337,-500.0,0.00012647,2]
[324863937,1714380649346,-500.0,0.00012647,2]
[324863938,1714380649355,-521.84350634,0.00012647,2]
[324863939,1714380649364,-500.0,0.00012647,2]
[324863940,1714380649373,-500.0,0.00012647,2]
[324863941,1714380649382,-187.10958207,0.00012647,2]
[324863942,1714380649391,-500.0,0.00012647,2]
[324863943,1714380649400,-509.2685073,0.00012647,2]
[324863944,1714380649409,-500.0,0.00012647,2]
[324863945,1714380649418,-502.96758309,0.00012647,2]
[324863946,1714380649427,-504.50961465,0.00012647,2]
[324863947,1714380649437,-500.0,0.00012647,2]
[324863948,1714380649446,-500.0,0.00012647,2]
[324863949,1714380649454,-500.0,0.00012647,2]
[324863950,1714380649464,-505.30997325,0.00012647,2]
[324863951,1714380649474,-500.0,0.00012647,2]
[324863952,1714380649483,-500.0,0.00012647,2]
[324863953,1714380649492,-500.0,0.00012647,2]
[324863954,1714380649501,-500.0,0.00012647,2]
[324863955,1714380649510,-500.0,0.00012647,2]
[324863956,1714380649519,-500.0,0.00012647,2]
[324863957,1714380649528,-500.0,0.00012647,2]
[324863958,1714380649538,-500.0,0.00012647,2]
[324863959,1714380649547,-500.0,0.00012647,2]
[324863960,1714380649558,-500.0,0.00012647,2]
[324863961,1714380649567,-500.0,0.00012647,2]
[324863962,1714380649577,-500.0,0.00012647,2]
[324863963,1714380649587,-530.84,0.00012647,2]
[324863964,1714380649596,-431.74,0.00012647,2]
[324863965,1714380649605,-500.0,0.00012647,2]
[324863966,1714380649614,-500.0,0.00012647,2]
[324863967,1714380649623,-325.15,0.00012647,2]
[324863968,1714380649632,-500.0,0.00012647,2]
[324863969,1714380649641,-500.0,0.00012647,2]
[324863970,1714380649650,-500.0,0.00012647,2]
[324863971,1714380649659,-500.0,0.00012647,2]
[324863972,1714380649668,-500.0,0.00012647,2]
[324863973,1714380649677,-507.83,0.00012647,2]
[324863974,1714380649686,-500.0,0.00012647,2]
[324863975,1714380649695,-500.0,0.00012647,2]
[324863976,1714380649705,-506.78988388,0.00012647,2]
[324863977,1714380649715,-588.35,0.00012647,2]
[324863978,1714380649724,-396.97904733,0.00012647,2]
[324863979,1714380649733,-1311.31,0.00012647,2]
[324863980,1714380649742,-621.83946749,0.00012647,2]
[324863981,1714380649751,-500.0,0.00012647,2]
[324863982,1714380649759,-527.37312131,0.00012647,2]
[324863983,1714380649768,-500.0,0.00012647,2]
[324863984,1714380649777,-500.0,0.00012647,2]
[324863985,1714380649787,-500.0,0.00012647,2]
[324863986,1714380649796,-500.0,0.00012647,2]
[324863987,1714380649805,-500.0,0.00012647,2]
[324863988,1714380649814,-500.0,0.00012647,2]
[324863989,1714380649822,-505.95220157,0.00012647,2]
[324863990,1714380649831,-516.9888831,0.00012647,2]
[324863991,1714380649840,-500.0,0.00012647,2]
[324863992,1714380649849,-513.65,0.00012647,2]
[324863993,1714380649858,-500.0,0.00012647,2]
[324863994,1714380649867,-500.0,0.00012647,2]
[324863995,1714380649876,-500.0,0.00012647,2]
[324863996,1714380649885,-500.0,0.00012647,2]
[324863997,1714380649895,-500.0,0.00012647,2]
[324863998,1714380649904,-500.0,0.00012647,2]
[324863999,1714380649913,-500.0,0.00012647,2]
[324864000,1714380649922,-504.55665628,0.00012647,2]
[324864001,1714380649931,-500.0,0.00012647,2]
[324864002,1714380649940,-500.0,0.00012647,2]
[324864003,1714380649949,-553.70369681,0.00012647,2]
[324864004,1714380649958,-500.0,0.00012647,2]
[324864005,1714380649968,-500.0,0.00012647,2]
[324864006,1714380649976,-500.0,0.00012647,2]
[324864007,1714380649986,-636.39417344,0.00012647,2]
[324864008,1714380649995,-500.0,0.00012647,2]
[324864009,1714380650004,-500.0,0.00012647,2]
[324864010,1714380650013,-508.34458441,0.00012647,2]
[324864011,1714380650022,-905.99,0.00012647,2]
[324864012,1714380650031,-176.95,0.00012647,2]
[324864013,1714380650040,-500.0,0.00012647,2]
[324864014,1714380650049,-743.99,0.00012647,2]
[324864015,1714380650057,-500.0,0.00012647,2]
[324864016,1714380650066,-1242.61,0.00012647,2]
[324864017,1714380650076,-586.56,0.00012647,2]
[324864018,1714380650084,-500.0,0.00012647,2]
[324864019,1714380650093,-500.0,0.00012647,2]
[324864020,1714380650103,-590.90924885,0.00012647,2]
[324864021,1714380650111,-500.0,0.00012647,2]
[324864022,1714380650120,-500.0,0.00012647,2]
[324864023,1714380650130,-500.0,0.00012647,2]
[324864024,1714380650139,-500.0,0.00012647,2]
[324864025,1714380650149,-500.0,0.00012647,2]
[324864026,1714380650158,-500.0,0.00012647,2]
[324864027,1714380650168,-500.0,0.00012648,2]
[324864028,1714380650177,-500.0,0.00012648,2]
[324864029,1714380650186,-1562.3002278,0.00012653,2]
[324864030,1714380650195,-1562.3002278,0.0001268,2]
[324864031,1714380650204,-2525.449442,0.00012687,2]
[324864032,1714380650213,-479.919834,0.00012687,2]
[324864033,1714380650223,-621.84015726,0.00012688,2]
[324864034,1714380650237,-500.0,0.00012688,2]
[324864035,1714380650246,-151.63499927,0.00012688,2]
[324864036,1714380650255,-1609.11132883,0.00012689,2]
[324864037,1714380650265,-928.3518091,0.00012689,2]
[324864038,1714380650273,-2349.7152102,0.00012689,2]
[324864039,1714380650284,-2173.9809784,0.00012689,2]
[324864040,1714380650294,-1998.2467466,0.00012689,2]
[324864041,1714380650303,-1822.5125148,0.00012689,2]
[324864042,1714380650312,-493.2651984,0.00012689,2]
[324864043,1714380650322,-506.6105628,0.00012689,2]
[324864044,1714380650331,-519.9559272,0.00012689,2]
[324864045,1714380650340,-533.3012915,0.00012689,2]
[324864046,1714380650349,-10000.0,0.0001269,2]
[324864047,1714380650359,-150.0,0.0001269,2]
[324864048,1714380650369,-150.0,0.00012695,2]
[324864049,1714380650378,-265.22502627,0.00012696,2]
[324864050,1714380650387,-211.80855662,0.00012696,2]
[324864051,1714380650396,-643.90531217,0.00012696,2]
[324864052,1714380650405,-244.27342141,0.00012696,2]
[324864053,1714380650414,-155.19589617,0.00012696,2]
[324864054,1714380650423,-155.9224172,0.00012696,2]
[324864055,1714380650432,-37981.13828103,0.00012697,2]
[324864056,1714380650442,-1804.60968477,0.00012697,2]
[324864057,1714380650451,-312.91635445,0.00012697,2]
[324864058,1714380650460,-471.23635946,0.00012697,2]
[324864059,1714380650472,-159.09262779,0.00012697,2]
[324864060,1714380650481,-500.0,0.00012697,2]
[324864061,1714380650490,-500.0,0.00012697,2]
[324864062,1714380650499,-500.0,0.00012697,2]
[324864063,1714380650509,-500.0,0.00012697,2]
[324864064,1714380650518,-500.0,0.00012697,2]
[324864065,1714380650528,-500.0,0.00012697,2]
[324864066,1714380650538,-500.0,0.00012697,2]
[324864067,1714380650547,-500.0,0.00012697,2]
[324864068,1714380650556,-500.0,0.00012697,2]
[324864069,1714380650566,-896.0,0.00012698,2]
[324864070,1714380650576,-268.33424577,0.00012698,2]
[324864071,1714380650586,-246263.45320271,0.00012698,2]
[324864072,1714380650602,-288.245,0.00012698,2]
[324864073,1714380650617,-1634.876216,0.00012698,2]
[324864074,1714380650788,-444.66,0.00011613,2]
[324864075,1714380650798,-348.29,0.00012371,2]
[324864076,1714380650811,-83.57880007,0.00012371,2]
[324864077,1714380650820,-500.0,0.00012372,2]
[324864078,1714380650829,-960.82022941,0.00012698,2]
[324864079,1714380650841,-635.79838548,0.00012698,2]
[324864080,1714380650852,-219188.21878431,0.00012698,2]
[324864081,1714380650863,-673.88867996,0.00012698,2]
[324864082,1714380804386,371.14,8.995e-05,2]
[324864085,1714381157228,-1337.96175164,0.00010892,2]
[324864086,1714381161112,706.94065433,0.00010891,2]
[324864087,1714381240042,155.0,0.00010891,2]
[324864088,1714381348492,352.58,8.59e-05,2]
[324864089,1714381348730,352.58,0.00010854,2]
[324864090,1714381356640,706.94065433,0.00010891,2]
[324864091,1714381449573,155.0,0.00010891,2]
[324864092,1714381456258,168.19,0.00010495,2]
[324864093,1714381495810,64.8069397,0.00010495,2]
[324864094,1714381495832,3628.0730603,0.00010495,2]
[324864137,1714381639098,155.0,0.00010891,2]
[324864140,1714381689909,216.9269397,0.00010596,2]
[324864141,1714381689930,4000.0,0.00010596,2]
[324864142,1714381689951,4000.0,0.00010596,2]
[324864143,1714381689971,4000.0,0.00010596,2]
[324864490,1714381832229,-236.89551413,0.00010511,2]
[324864492,1714381832240,-177.86,0.00010512,2]
[324864494,1714381832249,-210.25448587,0.00010596,2]
[324864496,1714381832268,-510.3534586,0.00010596,2]
[324864497,1714381832279,-2033.57,0.00010596,2]
[324864498,1714381832299,-4069.02801231,0.00010596,2]
[324864499,1714381832418,-633.16573653,0.00010596,2]
[324864500,1714381832431,-4147.36848739,0.00010596,2]
[324864501,1714381832443,-441.23700119,0.00010596,2]
[324864502,1714381832568,-2684.25710369,0.00010596,2]
[324864503,1714381832583,-613.511994,0.00010596,2]
[324864504,1714381832594,-542.31677201,0.00010596,2]
[324864505,1714381832607,-4493.81222611,0.00010596,2]
[324864506,1714381832618,-8599.99745466,0.00010596,2]
[324864507,1714381832674,-3236.53116874,0.00010596,2]
[324864508,1714381832686,-569.28707089,0.00010596,2]
[324864509,1714381832707,-306.88917699,0.00010596,2]
[324864510,1714381832734,-648.56859254,0.00010596,2]
[324864511,1714381832751,-1550.0,0.00010596,2]
[324864513,1714381832763,-6049.11431878,0.00010596,2]
[324864515,1714381832772,-156.77121027,0.00010793,2]
[324864516,1714381832781,-833.35,0.00010893,2]
[324864519,1714381832791,-177.75,0.000109,2]
[324864520,1714381832799,-723.24,0.00010922,2]
[324864522,1714381832809,-163.76,0.00010923,2]
[324864524,1714381832818,-158.03,0.00010929,2]
[324864526,1714381832827,-158.03,0.00010932,2]
[324864528,1714381832836,-1262.11,0.00010935,2]
[324864530,1714381832845,-2535.99,0.00010935,2]
[324864532,1714381832855,-158.03,0.00010935,2]
[324864534,1714381832864,-158.03,0.00010938,2]
[324864536,1714381832874,-158.03,0.00010941,2]
[324864538,1714381832883,-158.03,0.00010944,2]
[324864540,1714381832892,-158.03,0.00010946,2]
[324864542,1714381832901,-158.03,0.00010949,2]
[324864544,1714381832910,-158.03,0.00010952,2]
[324864546,1714381832919,-158.03,0.00010955,2]
[324864549,1714381832929,-158.03,0.00010958,2]
[324864551,1714381832938,-150.0,0.00010959,2]
[324864553,1714381832948,-158.03,0.00010961,2]
[324864554,1714381832957,-158.03,0.00010964,2]
[324864555,1714381832966,-158.03,0.00010967,2]
[324864556,1714381832975,-158.03,0.00010969,2]
[324864557,1714381832984,-158.03,0.00010972,2]
[324864558,1714381832997,-158.03,0.00010975,2]
[324864559,1714381833006,-158.03,0.00010978,2]
[324864560,1714381833015,-158.03,0.00010981,2]
[324864561,1714381833024,-158.03,0.00010984,2]
[324864562,1714381833033,-156.77121027,0.00011286,2]
[324864563,1714381833042,-155.0,0.00011487,2]
[324864564,1714381833051,-3187.99,0.00011487,2]
[324864565,1714381833060,-639.91,0.000117,2]
[324864566,1714381833069,-639.91,0.00011703,2]
[324864567,1714381833079,-639.91,0.00011706,2]
[324864568,1714381833088,-639.91,0.0001171,2]
[324864569,1714381833097,-639.91,0.00011713,2]
[324864570,1714381833107,-639.91,0.00011716,2]
[324864571,1714381833116,-639.91,0.00011719,2]
[324864572,1714381833125,-639.91,0.00011722,2]
[324864573,1714381833134,-639.91,0.00011725,2]
[324864574,1714381833143,-639.91,0.00011728,2]
[324864575,1714381833152,-639.91,0.00011731,2]
[324864576,1714381833162,-639.91,0.00011734,2]
[324864577,1714381833172,-639.91,0.00011737,2]
[324864578,1714381833181,-639.91,0.0001174,2]
[324864579,1714381833190,-639.91,0.00011743,2]
[324864580,1714381833199,-639.91,0.00011746,2]
[324864581,1714381833208,-639.91,0.00011749,2]
[324864582,1714381833218,-639.91,0.00011752,2]
[324864583,1714381833226,-639.91,0.00011756,2]
[324864584,1714381833238,-639.91,0.00011759,2]
[324864585,1714381833247,-156.77121027,0.00011778,2]
[324864586,1714381833255,-500.0,0.0001178,2]
[324864587,1714381833265,-177.86,0.00011826,2]
[324864588,1714381833274,-400.0,0.000121,4]
[324864589,1714381833283,-2100.0,0.000121,4]
[324864590,1714381833293,-12242.7653,0.00012173,2]
[324864591,1714381833303,-800.0,0.000122,4]
[324864592,1714381833312,-4200.0,0.000122,4]
[324864593,1714381833323,-1363.46672697,0.00012246,2]
[324864594,1714381833332,-833.35,0.00012255,2]
[324864595,1714381833341,-155.0,0.0001227,2]
[324864596,1714381833351,-156.77121027,0.00012271,2]
[324864597,1714381833360,-416.9162,0.00012272,2]
[324864598,1714381833370,-1000.0,0.00012272,2]
[324864599,1714381833379,-1333.1275,0.00012272,2]
[324864600,1714381833388,-6626.8724,0.00012272,2]
[324864601,1714381833398,-2203.435,0.00012272,2]
[324864602,1714381833407,-615.1105,0.00012272,2]
[324864603,1714381833416,-624.79,0.00012272,2]
[324864604,1714381833426,-154.2271,0.00012272,2]
[324864605,1714381833435,-26379.83147595,0.00012273,2]
[324864635,1714381837638,-6401.18718974,0.00012271,2]
[324864637,1714381837651,-1029.27,0.00012271,2]
[324864639,1714381837662,-741.3170906,0.00012271,2]
[324864641,1714381837675,-1000.00663,0.00012271,2]
[324864643,1714381837688,-995.94,0.00012271,2]
[324864656,1714381837846,-406121.5292387,0.00012271,2]
[324864657,1714381837858,-101582.63172756,0.00012271,2]
[324864658,1714381837881,-7777.74976624,0.00012271,2]
[324864659,1714381838004,-19840.1776307,0.00012271,2]
[324864688,1714381839622,-56247.85279996,0.00012271,2]
[324864689,1714381839633,-6432.8,0.00012271,2]
[324864690,1714381839645,-778.93087633,0.00012271,2]
[324864691,1714381839657,-424.5191321,0.00012271,2]
[324864692,1714381839669,-1508.7644094,0.00012271,2]
[324864693,1714381839904,-1730.84596,0.00012271,2]
[324864694,1714381839915,-624.8,0.00012271,2]
[324864695,1714381839935,-1248.68,0.00012271,2]
[324864696,1714381839947,-496.98693492,0.00012271,2]
[324864697,1714381840034,-1344.33106011,0.00012271,2]
[324864698,1714381840047,-1761.45133784,0.00012271,2]
[324864700,1714381840089,-330.13781764,0.00012271,2]
[324864734,1714381842696,-1673.32384348,0.00012271,2]
[324864735,1714381842708,-9451.688092,0.00012271,2]
[324864736,1714381842719,-405.75828576,0.00012271,2]
[324864737,1714381842731,-776.81829965,0.00012271,2]
[324864738,1714381842840,-683925.94710473,0.00012271,2]
[324864739,1714381842948,-410.13728393,0.00012173,2]
[324864740,1714381842958,-1173.74194094,0.00012271,2]
[324864741,1714381842976,-670.14303817,0.00012271,2]
[324864742,1714381843002,-925.13043544,0.00012271,2]
[324864743,1714381843014,-373.02242776,0.00012271,2]
[324864744,1714381843026,-382.2816409,0.00012271,2]
[324864745,1714381843037,-469.67010088,0.00012271,2]
[324864746,1714381843049,-643.92736939,0.00012271,2]
[324864765,1714381845599,-410.1372839,0.00012198,2]
[324864766,1714381845610,-129888.40890154,0.00012271,2]
[324864767,1714381845621,-558.18367625,0.00012271,2]
[324864768,1714381845640,-3090.76679273,0.00012271,2]
[324864769,1714381845742,-376.97280701,0.00012271,2]
[324864770,1714381845755,-255.0,0.00012271,2]
[324864771,1714381845775,-565.22202786,0.00012271,2]
[324864772,1714381845786,-324.23779872,0.00012271,2]
[324864786,1714381875131,330.19,9.456e-05,2]
[324864788,1714382002567,179.73027073,0.0001,2]
[324864789,1714382012012,298.84757904,0.0001,2]
[324864790,1714382014880,546.96745632,0.0001,2]
[324864791,1714382016049,408.68643751,0.0001,2]
[324864792,1714382025981,274.75621951,0.0001,2]
[324864793,1714382026012,173513.9537866,0.0001,2]
[324864795,1714382067772,-3082.64415002,9.998e-05,2]
[324864797,1714382349332,391.99,8.219e-05,2]
[324865149,1714382722981,157.47,9.6e-05,2]
[324865150,1714382739581,1465.73,9.551e-05,2]
[324865151,1714382743634,1939.26254209,8.219e-05,2]
[324865152,1714382743656,2156.52871948,8.219e-05,2]
[324865155,1714382764472,500.0,9.585e-05,2]
[324865156,1714382786820,1343.47128052,9.625e-05,2]
[324865157,1714382786845,1739.1728695,9.625e-05,2]
[324865158,1714382798708,258.40516807,9.625e-05,2]
[324865159,1714382813434,2002.42196243,9.625e-05,2]
[324865177,1714383031694,-155.0,8.212e-05,2]
[324865178,1714383031704,-155.0,8.213e-05,2]
[324865179,1714383031715,-527.34137057,8.214e-05,2]
[324865180,1714383031726,-384.14,8.219e-05,2]
[324865181,1714383031735,-2186.63141825,9.485e-05,2]
[324865184,1714383031747,-1985.5,9.486e-05,2]
[324865187,1714383031757,-200.0,9.528e-05,2]
[324865189,1714383031766,-250.0,9.528e-05,2]
[324865192,1714383031775,-649.88,9.528e-05,2]
[324865195,1714383031785,-177.75,9.528e-05,2]
[324865198,1714383031795,-150.0,9.63e-05,2]
[324865200,1714383031804,-200.0,9.631e-05,2]
[324865201,1714383031813,-579.15,9.641e-05,2]
[324865202,1714383031822,-2549.99,9.709e-05,2]
[324865203,1714383031832,-16754.06,9.71e-05,2]
[324865204,1714383031841,-157.47,9.85e-05,2]
[324865205,1714383031850,-258.11,9.889e-05,2]
[324865206,1714383031859,-150.99,9.889e-05,2]
[324865207,1714383031868,-9297.3,9.889e-05,2]
[324865208,1714383031878,-3913.73624714,9.989e-05,2]
[324865209,1714383031887,-268.33424577,9.998e-05,2]
[324865210,1714383031896,-155.0,9.998e-05,2]
[324865211,1714383031905,-251.06996746,9.998e-05,2]
[324865212,1714383031915,-3081.49272572,9.998e-05,2]
[324865213,1714383031927,-241.43405171,9.998e-05,2]
[324865214,1714383031937,-178.68529601,9.999e-05,2]
[324865215,1714383031946,-91518.89810416,0.0001,2]
[324865216,1714383031958,-882.33461522,0.0001,2]
[324865218,1714383032033,-6666.6,0.0001,2]
[324865220,1714383032045,-267.11689591,0.0001,2]
[324865222,1714383032056,-2084.58601039,0.0001,2]
[324865224,1714383032069,-15009.97125929,0.0001,2]
[324865227,1714383032080,-8925.78038105,0.0001,2]
[324865231,1714383032110,-1271.24,0.0001,2]
[324865245,1714383032239,-722.23231057,0.0001,2]
[324865267,1714383032438,-545.82242817,0.0001,2]
[324865269,1714383032450,-6930.13054556,0.0001,2]
[324865272,1714383032462,-504.69421276,0.0001,2]
[324865274,1714383032474,-298.69050621,0.0001,2]
[324865427,1714383037785,-330.98596817,0.0001,2]
[324865428,1714383037797,-836.87762474,0.0001,2]
[324865429,1714383037809,-424.0464867,0.0001,2]
[324865430,1714383037848,-101573.04339793,0.0001,2]
[324865431,1714383037860,-4647.92,0.0001,2]
[324865432,1714383037871,-517.9058607,0.0001,2]
[324865433,1714383037883,-53136.01099734,0.0001,2]
[324865434,1714383037895,-204.0929013,0.0001,2]
[324865435,1714383037905,-3297.31,0.0001,2]
[324865436,1714383037917,-157.47,0.000101,2]
[324865437,1714383037927,-893.28,0.00010133,2]
[324865438,1714383037936,-2026.06,0.00010133,2]
[324865439,1714383037946,-499.99,0.00010307,2]
[324865440,1714383037956,-384.14,0.00010456,2]
[324865441,1714383038210,-179.97,0.00010512,2]
[324865442,1714383038226,-210.0,0.00010593,2]
[324865443,1714383038236,-961.12177568,0.0001066,2]
[324865444,1714383038246,-7800.0,0.000108,3]
[324865445,1714383038255,-579.15,0.00010846,2]
[324865446,1714383038266,-535.03427362,0.00010858,2]
[324865447,1714383038276,-279.42169801,0.00010858,2]
[324865449,1714383038285,-15700.0,0.000109,3]
[324865451,1714383038295,-500.0,0.00010958,2]
[324865453,1714383038304,-500.0,0.00010958,2]
[324865455,1714383038314,-500.0,0.00010958,2]
[324865456,1714383038323,-500.0,0.00010958,2]
[324865457,1714383038333,-500.0,0.00010958,2]
[324865458,1714383038342,-500.0,0.00010958,2]
[324865459,1714383038351,-500.0,0.00010958,2]
[324865460,1714383038360,-500.0,0.00010958,2]
[324865461,1714383038370,-193.02552242,0.00010958,2]
[324865462,1714383038379,-640.96,0.00010958,2]
[324865463,1714383038388,-500.0,0.00010958,2]
[324865464,1714383038398,-500.0,0.00010958,2]
[324865465,1714383038408,-500.0,0.00010958,2]
[324865466,1714383038418,-500.0,0.00010958,2]
[324865467,1714383038428,-500.0,0.00010958,2]
[324865468,1714383038438,-500.0,0.00010958,2]
[324865469,1714383038447,-500.0,0.00010958,2]
[324865470,1714383038457,-500.0,0.00010958,2]
[324865471,1714383038466,-500.0,0.00010958,2]
[324865472,1714383038476,-500.0,0.00010958,2]
[324865473,1714383038486,-500.0,0.00010958,2]
[324865474,1714383038495,-500.0,0.00010958,2]
[324865475,1714383038504,-500.0,0.00010958,2]
[324865476,1714383038514,-500.0,0.00010958,2]
[324865477,1714383038523,-500.0,0.00010958,2]
[324865478,1714383038532,-448.11307762,0.00010958,2]
[324865479,1714383038542,-500.0,0.00010958,2]
[324865480,1714383038551,-500.0,0.00010958,2]
[324865481,1714383038560,-500.0,0.00010958,2]
[324865482,1714383038569,-500.0,0.00010958,2]
[324865483,1714383038579,-500.0,0.00010958,2]
[324865484,1714383038588,-500.0,0.00010958,2]
[324865485,1714383038597,-500.0,0.00010958,2]
[324865486,1714383038607,-500.0,0.00010958,2]
[324865487,1714383038616,-500.0,0.00010958,2]
[324865488,1714383038625,-500.0,0.00010958,2]
[324865489,1714383038634,-503.81185875,0.00010958,2]
[324865490,1714383038644,-500.0,0.00010958,2]
[324865491,1714383038653,-500.0,0.00010958,2]
[324865492,1714383038663,-500.0,0.00010958,2]
[324865493,1714383038672,-507.77792814,0.00010958,2]
[324865494,1714383038681,-523.83032228,0.00010958,2]
[324865495,1714383038691,-500.0,0.00010958,2]
[324865496,1714383038700,-500.0,0.00010958,2]
[324865497,1714383038709,-507.55782123,0.00010958,2]
[324865498,1714383038719,-500.0,0.00010958,2]
[324865499,1714383038729,-500.0,0.00010958,2]
[324865500,1714383038739,-500.0,0.00010958,2]
[324865501,1714383038749,-500.0,0.00010958,2]
[324865502,1714383038759,-500.0,0.00010958,2]
[324865503,1714383038768,-500.0,0.00010958,2]
[324865504,1714383038777,-500.0,0.00010958,2]
[324865505,1714383038786,-337.66357995,0.00010958,2]
[324865506,1714383038796,-498.65589792,0.00010958,2]
[324865507,1714383038805,-500.0,0.00010958,2]
[324865508,1714383038815,-603.46,0.00010958,2]
[324865509,1714383038824,-500.0,0.00010958,2]
[324865510,1714383038834,-500.0,0.00010958,2]
[324865511,1714383038843,-500.0,0.00010958,2]
[324865512,1714383038852,-504.10992078,0.00010958,2]
[324865513,1714383038861,-502.25621583,0.00010958,2]
[324865514,1714383038870,-504.67278576,0.00010958,2]
[324865515,1714383038879,-500.0,0.00010958,2]
[324865516,1714383038888,-500.0,0.00010958,2]
[324865517,1714383038898,-500.0,0.00010958,2]
[324865518,1714383038907,-500.0,0.00010958,2]
[324865519,1714383038919,-500.0,0.00010958,2]
[324865520,1714383038929,-500.0,0.00010958,2]
[324865521,1714383038938,-402.76819527,0.00010958,2]
[324865522,1714383038947,-500.0,0.00010958,2]
[324865523,1714383038958,-500.0,0.00010958,2]
[324865524,1714383038968,-500.0,0.00010958,2]
[324865525,1714383038978,-500.0,0.00010958,2]
[324865526,1714383038987,-500.0,0.00010958,2]
[324865527,1714383038998,-500.0,0.00010958,2]
[324865528,1714383039008,-502.06819245,0.00010958,2]
[324865529,1714383039017,-500.0,0.00010958,2]
[324865530,1714383039027,-500.0,0.00010958,2]
[324865531,1714383039036,-500.0,0.00010958,2]
[324865532,1714383039045,-500.0,0.00010958,2]
[324865533,1714383039054,-500.0,0.00010958,2]
[324865534,1714383039063,-515.21499329,0.00010958,2]
[324865535,1714383039072,-500.0,0.00010958,2]
[324865536,1714383039082,-500.0,0.00010958,2]
[324865537,1714383039091,-500.0,0.00010958,2]
[324865538,1714383039101,-494.24040347,0.00010958,2]
[324865539,1714383039120,-5.75959653,0.00010958,2]
[324865540,1714383039130,-500.0,0.00010958,2]